fUSD/lending_fUSD_20251230
["ID","MTS","AMOUNT","RATE_DAILY","PERIOD"]
[400105314,1767120518437,-151.0,0.00016333,2]
[400105315,1767120518457,-166.74,0.0001644,2]
[400105316,1767120518477,-500.0,0.00016525,2]
[400105317,1767120518499,-260.12020795,0.00016526,2]
[400105318,1767120518521,-500.0,0.0001658,2]
[400105319,1767120518548,-500.0,0.00016635,2]
[400105320,1767120518570,-500.0,0.00016689,2]
[400105321,1767120518593,-161.2880656,0.00016711,2]
[400105322,1767120518615,-500.0,0.00016744,2]
[400105323,1767120518637,-400.0,0.00016798,2]
[400105324,1767120518658,-500.0,0.00016799,2]
[400105325,1767120518679,-500.0,0.00016799,2]
[400105326,1767120518702,-500.0,0.00016799,2]
[400105327,1767120518724,-185.02231165,0.00016799,2]
[400105328,1767120518748,-500.0,0.00016799,2]
[400105329,1767120518774,-500.0,0.00016799,2]
[400105330,1767120518801,-500.0,0.00016799,2]
[400105331,1767120518825,-500.0,0.00016799,2]
[400105332,1767120518850,-500.0,0.00016799,2]
[400105333,1767120518877,-500.0,0.00016799,2]
[400105334,1767120518902,-406.11358523,0.00016799,2]
[400105335,1767120518928,-500.0,0.00016799,2]
[400105336,1767120518956,-500.0,0.00016799,2]
[400105337,1767120518988,-500.0,0.00016799,2]
[400105338,1767120519014,-500.0,0.00016799,2]
[400105339,1767120519040,-500.0,0.00016799,2]
[400105340,1767120519065,-500.0,0.00016799,2]
[400105341,1767120519091,-500.0,0.00016799,2]
[400105342,1767120519116,-500.0,0.00016799,2]
[400105343,1767120519141,-500.0,0.00016799,2]
[400105344,1767120519165,-500.0,0.00016799,2]
[400105345,1767120519194,-500.0,0.00016799,2]
[400105346,1767120519219,-500.0,0.00016799,2]
[400105347,1767120519243,-500.0,0.00016799,2]
[400105348,1767120519268,-500.0,0.00016799,2]
[400105349,1767120519292,-500.0,0.00016799,2]
[400105350,1767120519316,-500.0,0.00016799,2]
[400105351,1767120519339,-500.0,0.00016799,2]
[400105352,1767120519364,-500.0,0.00016799,2]
[400105353,1767120519388,-500.0,0.00016799,2]
[400105354,1767120519413,-500.0,0.00016799,2]
[400105355,1767120519440,-500.0,0.00016799,2]
[400105356,1767120519465,-500.0,0.00016799,2]
[400105357,1767120519491,-500.0,0.00016799,2]
[400105358,1767120519517,-500.0,0.00016799,2]
[400105359,1767120519541,-500.0,0.00016799,2]
[400105360,1767120519583,-500.0,0.00016799,2]
[400105361,1767120519614,-500.0,0.00016799,2]
[400105362,1767120519644,-500.0,0.00016799,2]
[400105363,1767120519679,-500.0,0.00016799,2]
[400105364,1767120519708,-500.0,0.00016799,2]
[400105365,1767120519735,-500.0,0.00016799,2]
[400105366,1767120519765,-500.0,0.00016799,2]
[400105367,1767120519794,-500.0,0.00016799,2]
[400105368,1767120519823,-500.0,0.00016799,2]
[400105369,1767120519851,-500.0,0.00016799,2]
[400105370,1767120519879,-500.0,0.00016799,2]
[400105371,1767120519907,-500.0,0.00016799,2]
[400105372,1767120519936,-611.87112943,0.00016799,2]
[400105373,1767120519962,-500.0,0.00016799,2]
[400105374,1767120519991,-500.0,0.00016799,2]
[400105375,1767120520017,-500.0,0.00016799,2]
[400105376,1767120520044,-500.0,0.00016799,2]
[400105377,1767120520070,-500.0,0.00016799,2]
[400105378,1767120520099,-500.0,0.00016799,2]
[400105379,1767120520123,-500.0,0.00016799,2]
[400105380,1767120520148,-500.0,0.00016799,2]
[400105381,1767120520177,-500.0,0.00016799,2]
[400105382,1767120520208,-500.0,0.00016799,2]
[400105383,1767120520237,-500.0,0.00016799,2]
[400105384,1767120520264,-500.0,0.00016799,2]
[400105385,1767120520291,-500.0,0.00016799,2]
[400105386,1767120520322,-500.0,0.00016799,2]
[400105387,1767120520351,-500.0,0.00016799,2]
[400105388,1767120520377,-500.0,0.00016799,2]
[400105389,1767120520405,-500.0,0.00016799,2]
[400105390,1767120520436,-500.0,0.00016799,2]
[400105391,1767120520464,-500.0,0.00016799,2]
[400105392,1767120520492,-500.0,0.00016799,2]
[400105393,1767120520520,-500.0,0.00016799,2]
[400105394,1767120520545,-500.0,0.00016799,2]
[400105395,1767120520573,-500.0,0.00016799,2]
[400105396,1767120520601,-500.0,0.00016799,2]
[400105397,1767120520629,-500.0,0.00016799,2]
[400105398,1767120520658,-500.0,0.00016799,2]
[400105399,1767120520686,-500.0,0.00016799,2]
[400105400,1767120520713,-500.0,0.00016799,2]
[400105401,1767120520739,-500.0,0.00016799,2]
[400105402,1767120520768,-500.0,0.00016799,2]
[400105403,1767120520795,-500.0,0.00016799,2]
[400105404,1767120520823,-500.0,0.00016799,2]
[400105405,1767120520851,-500.0,0.00016799,2]
[400105406,1767120520878,-500.0,0.00016799,2]
[400105407,1767120520913,-500.0,0.00016799,2]
[400105408,1767120520942,-500.0,0.00016799,2]
[400105409,1767120520970,-500.0,0.00016799,2]
[400105410,1767120520999,-500.0,0.00016799,2]
[400105411,1767120521029,-500.0,0.00016799,2]
[400105412,1767120521056,-361.18711294,0.00016799,2]
[400105413,1767120521083,-500.0,0.00016799,2]
[400105414,1767120521108,-500.0,0.00016799,2]
[400105415,1767120521134,-500.0,0.00016799,2]
[400105416,1767120521159,-467.6750015,0.00016799,2]
[400105417,1767120521185,-3243.961,0.00016799,2]
[400105418,1767120521209,-289.445,0.00016799,2]
[400105419,1767120521239,-500.0,0.00016799,2]
[400105420,1767120521266,-698.01227629,0.000168,2]
[400105429,1767120632158,-166.66,0.00015671,2]
[400105431,1767120632168,-104.34000022,0.00016001,2]
[400105432,1767120632180,-62.31999978,0.00016001,2]
[400105433,1767120632190,-166.66,0.00016331,2]
[400105434,1767120632202,-166.66,0.00016661,2]
[400105435,1767120632211,-479.51561815,0.00016698,2]
[400105437,1767120632221,-500.0,0.00016698,2]
[400105439,1767120632231,-99.28815284,0.00016698,2]
[400105443,1767120632253,-56.94668996,0.00016698,2]
[400105445,1767120632263,-500.0,0.00016698,2]
[400105447,1767120632273,-500.0,0.00016698,2]
[400105449,1767120632283,-500.0,0.00016698,2]
[400105450,1767120632293,-500.0,0.00016698,2]
[400105453,1767120632303,-1200.0,0.00016698,2]
[400105455,1767120632312,-150663.19426851,0.00016699,2]
[400105457,1767120632324,-17051.65924113,0.00016699,2]
[400105460,1767120632347,-500.0,0.00016698,2]
[400105462,1767120632356,-500.0,0.00016698,2]
[400105464,1767120632366,-1204.42030992,0.00016699,2]
[400105494,1767120638021,-386.1187113,0.00016698,2]
[400105495,1767120638032,-500.0,0.00016698,2]
[400105496,1767120638042,-49.46298504,0.00016698,2]
[400105497,1767120638054,-450.53701496,0.00016698,2]
[400105498,1767120638064,-187873.60255826,0.00016699,2]
[400105499,1767120638075,-402.79923305,0.00016699,2]
[400105500,1767120638131,-393.69097478,0.00016699,2]
[400105501,1767120638146,-871.643,0.00016699,2]
[400105505,1767120640116,-252.254964,0.00016699,2]
[400105542,1767120644612,-0.70342524,0.00016699,2]
[400105543,1767120644754,-1000.0,0.00016699,2]
[400105589,1767120792266,153.04,7.96e-05,2]
[400105590,1767120792480,153.04,8.457e-05,2]
[400105591,1767120792751,153.04,8.955e-05,2]
[400105592,1767120793169,153.04,9.452e-05,2]
[400105593,1767120793408,153.04,9.95e-05,2]
[400105594,1767120793635,153.04,0.00010447,2]
[400105595,1767120793864,153.04,0.00010945,2]
[400105596,1767120794084,153.04,0.00011442,2]
[400105597,1767120794447,153.04,0.0001194,2]
[400105598,1767120794671,153.04,0.00012437,2]
[400105599,1767120794872,153.04,0.00012935,2]
[400105600,1767120795091,153.04,0.00013432,2]
[400105601,1767121468435,-199.64592776,0.00013845,2]
[400105602,1767121473025,122.35407224,0.0001383,2]
[400105603,1767121535521,-500.0,0.00013699,2]
[400105654,1767121832082,-266.358574,0.00013599,2]
[400105656,1767121832093,-20.84,0.00013699,2]
[400105658,1767121832103,-263.0,0.00013699,2]
[400105660,1767121832112,-386.78212137,0.00013731,2]
[400105662,1767121832122,-300.0,0.00013731,2]
[400105663,1767121832132,-600.0,0.00013731,2]
[400105665,1767121832142,-153.30093913,0.00013764,2]
[400105666,1767121832152,-199.64592775,0.0001383,2]
[400105667,1767121832162,-500.0,0.0001393,2]
[400105668,1767121832172,-210.07243777,0.0001393,2]
[400105669,1767121832185,-289.92756223,0.0001393,2]
[400105670,1767121832195,-296.9491482,0.0001393,2]
[400105671,1767121832209,-153.04,0.0001393,2]
[400105672,1767121832219,-371.88044611,0.0001393,2]
[400105673,1767121832294,-228.11955389,0.0001393,2]
[400105674,1767121832304,-441.16978428,0.0001393,2]
[400105675,1767121832315,-153.04,0.00014427,2]
[400105676,1767121832325,-153.04,0.00014925,2]
[400105677,1767121832335,-300.0,0.00015067,2]
[400105678,1767121832347,-278.77679684,0.00015067,2]
[400105680,1767121832358,-921.22320316,0.00015067,2]
[400105682,1767121832368,-29.04225878,0.00015068,2]
[400105683,1767121832380,-220.95774122,0.00015068,2]
[400105684,1767121832390,-169.41497809,0.00015068,2]
[400105685,1767121832401,-25.58502191,0.00015068,2]
[400105686,1767121832412,-250.0,0.00015068,2]
[400105687,1767121832422,-300.0,0.00015068,2]
[400105688,1767121832432,-300.0,0.00015068,2]
[400105689,1767121832442,-600.0,0.00015068,2]
[400105690,1767121832452,-195.0,0.00015068,2]
[400105691,1767121832465,-200.0,0.00015113,2]
[400105692,1767121832474,-500.0,0.00015174,2]
[400105693,1767121832485,-150.0,0.00015288,2]
[400105694,1767121832495,-150.0,0.00015288,2]
[400105695,1767121832505,-150.0,0.00015288,2]
[400105696,1767121832515,-150.0,0.00015288,2]
[400105697,1767121832525,-150.0,0.00015288,2]
[400105698,1767121832535,-150.0,0.00015288,2]
[400105699,1767121832545,-150.0,0.00015288,2]
[400105700,1767121832557,-150.0,0.00015288,2]
[400105701,1767121832568,-150.0,0.00015288,2]
[400105702,1767121832577,-153.04,0.00015423,2]
[400105703,1767121832587,-615.54,0.00015616,2]
[400105704,1767121832597,-176.93,0.00015707,2]
[400105705,1767121832607,-999.0,0.00015737,3]
[400105706,1767121832617,-708.49,0.00015745,2]
[400105707,1767121832628,-151.0,0.00015861,2]
[400105708,1767121832638,-151.0,0.00015861,2]
[400105709,1767121832648,-151.0,0.00015865,2]
[400105710,1767121832658,-151.0,0.00015865,2]
[400105711,1767121832668,-153.04,0.0001592,2]
[400105712,1767121832678,-500.0,0.00015972,2]
[400105713,1767121832687,-200.0,0.00015972,2]
[400105714,1767121832697,-207.4,0.00015972,2]
[400105715,1767121832707,-215.0738,0.00015972,2]
[400105716,1767121832716,-223.0315306,0.00015972,2]
[400105717,1767121832727,-151.0,0.00015972,2]
[400105718,1767121832737,-231.28369723,0.00015972,2]
[400105719,1767121832747,-156.587,0.00015972,2]
[400105720,1767121832758,-239.84119403,0.00015972,2]
[400105721,1767121832768,-162.380719,0.00015972,2]
[400105722,1767121832779,-248.71531821,0.00015972,2]
[400105723,1767121832789,-154.34169665,0.00015972,2]
[400105724,1767121832799,-257.91778498,0.00015972,2]
[400105725,1767121832809,-267.46074303,0.00015972,2]
[400105726,1767121832818,-317.85411109,0.00015972,2]
[400105727,1767121832828,-176.93,0.00016493,2]
[400105728,1767121832837,-273.68156877,0.00016499,2]
[400105729,1767121832860,-185.55785365,0.00016499,2]
[400105730,1767121832869,-1680.0,0.00016573,2]
[400105731,1767121832880,-174.95209879,0.00016588,2]
[400105732,1767121832890,-335.66093271,0.00016588,2]
[400105733,1767121832899,-135.00667514,0.00016588,2]
[400105752,1767121838213,-44.91116448,0.00016588,2]
[400105753,1767121838224,-350.20653349,0.00016588,2]
[400105754,1767121838265,-192.69554554,0.00016588,2]
[400105755,1767121838276,-2194.89605538,0.00016589,2]
[400105756,1767121838289,-1520.64234237,0.00016589,2]
[400105757,1767121838301,-5736.53584721,0.00016589,2]
[400105758,1767121838431,-343.8796477,0.00016589,2]
[400105842,1767121840314,-8102.83272952,0.00016589,2]
[400105843,1767121840368,-396.66388166,0.00016589,2]
[400105844,1767121840424,-352.088,0.00016589,2]
[400105845,1767121840691,-1807.69,0.00016589,2]
[400105850,1767121843871,-151.0,0.00016295,2]
[400105851,1767121843883,-151.0,0.00016295,2]
[400105852,1767121843892,-669.81328667,0.00016589,2]
[400105853,1767121843904,-17618.0,0.00016589,2]
[400105855,1767121846205,-500.0,0.00016589,2]
[400105856,1767121846217,-5570.45453968,0.00016589,2]
[400105865,1767122466747,2500.0,0.00015,2]
[400105866,1767122481920,2111.0,0.00013501,2]
[400105867,1767122530854,8499.0,0.00013501,2]
[400105877,1767122848727,-150.02,0.00042929,120]
[400105878,1767122848757,-2340.0,0.00042929,30]
[400105879,1767122848785,-2340.0,0.00042929,120]
[400105880,1767122848812,-150.02,0.00042929,120]
[400105881,1767122848839,-150.02,0.00042929,120]
[400105882,1767122848871,-150.02,0.00042929,120]
[400105883,1767122848900,-150.02,0.00042929,120]
[400105884,1767122848929,-150.02,0.00042929,120]
[400105885,1767122848962,-150.02,0.00042929,120]
[400105886,1767122848991,-150.02,0.00042929,120]
[400105887,1767122849020,-150.02,0.00042929,120]
[400105888,1767122849048,-150.02,0.00042929,120]
[400105889,1767122849075,-150.02,0.00042929,120]
[400105890,1767122849103,-314.30508092,0.00042929,30]
[400105891,1767122849129,-150.02,0.00042929,120]
[400105892,1767122849157,-150.02,0.00042929,120]
[400105893,1767122849185,-150.02,0.00042929,120]
[400105894,1767122849213,-150.02,0.00042929,120]
[400105895,1767122849241,-150.02,0.00042929,120]
[400105896,1767122849269,-150.02,0.00042929,120]
[400105897,1767122849299,-150.02,0.00042929,120]
[400105898,1767122849328,-150.02,0.00042929,120]
[400105899,1767122849359,-150.02,0.00042929,120]
[400105900,1767122849388,-799.9555027,0.00042929,120]
[400105901,1767122849419,-150.02,0.00042929,120]
[400105902,1767122849448,-150.02,0.00042929,120]
[400105903,1767122849479,-150.02,0.00042929,120]
[400105904,1767122849507,-150.02,0.00042929,120]
[400105905,1767122849536,-150.02,0.00042929,120]
[400105906,1767122849565,-150.02,0.00042929,120]
[400105907,1767122849593,-150.02,0.00042929,120]
[400105908,1767122849623,-150.02,0.00042929,120]
[400105909,1767122849654,-150.02,0.00042929,120]
[400105910,1767122849680,-150.02,0.00042929,120]
[400105911,1767122849707,-150.02,0.00042929,120]
[400105912,1767122849735,-150.02,0.00042929,120]
[400105913,1767122849763,-1814.93217149,0.00042929,60]
[400105914,1767122849790,-150.02,0.00042929,120]
[400105915,1767122849817,-150.02,0.00042929,120]
[400105916,1767122849846,-150.02,0.00042929,120]
[400105917,1767122849881,-150.02,0.00042929,120]
[400105918,1767122850135,-150.02,0.00042929,120]
[400105919,1767122850163,-150.02,0.00042929,120]
[400105920,1767122850191,-150.02,0.00042929,120]
[400105921,1767122850219,-150.02,0.00042929,120]
[400105922,1767122850247,-922.88889324,0.00042929,120]
[400105923,1767122850276,-150.02,0.00042929,120]
[400105924,1767122850305,-930.78823338,0.00042929,120]
[400105925,1767122850335,-1418.0,0.00042929,120]
[400105926,1767122850365,-150.02,0.00042929,120]
[400105927,1767122850395,-150.02,0.00042929,120]
[400105928,1767122850426,-150.02,0.00042929,120]
[400105929,1767122850470,-150.02,0.00042929,120]
[400105930,1767122850505,-150.02,0.00042929,120]
[400105931,1767122850536,-150.02,0.00042929,120]
[400105932,1767122850566,-150.02,0.00042929,120]
[400105933,1767122850597,-150.02,0.00042929,120]
[400105934,1767122850626,-150.02,0.00042929,120]
[400105935,1767122850656,-150.02,0.00042929,120]
[400105936,1767122850685,-150.02,0.00042929,120]
[400105937,1767122850713,-150.02,0.00042929,120]
[400105938,1767122850743,-150.02,0.00042929,120]
[400105939,1767122850772,-150.02,0.00042929,120]
[400105940,1767122850800,-150.02,0.00042929,120]
[400105941,1767122850828,-150.02,0.00042929,120]
[400105942,1767122850858,-150.02,0.00042929,120]
[400105943,1767122850888,-150.02,0.00042929,120]
[400105944,1767122850917,-150.02,0.00042929,120]
[400105945,1767122850945,-150.02,0.00042929,120]
[400105946,1767122850972,-150.02,0.00042929,120]
[400105947,1767122850999,-150.02,0.00042929,120]
[400105948,1767122851025,-150.02,0.00042929,120]
[400105949,1767122851052,-150.02,0.00042929,120]
[400105950,1767122851080,-150.02,0.00042929,120]
[400105951,1767122851107,-150.02,0.00042929,120]
[400105952,1767122851136,-150.02,0.00042929,120]
[400105953,1767122851163,-150.02,0.00042929,120]
[400105954,1767122851190,-150.02,0.00042929,120]
[400105955,1767122851217,-150.02,0.00042929,120]
[400105956,1767122851244,-150.02,0.00042929,120]
[400105957,1767122851272,-150.02,0.00042929,120]
[400105958,1767122851300,-150.02,0.00042929,120]
[400105959,1767122851329,-150.02,0.00042929,120]
[400105960,1767122851358,-150.02,0.00042929,120]
[400105961,1767122851386,-150.02,0.00042929,120]
[400105962,1767122851415,-150.02,0.00042929,120]
[400105963,1767122851445,-150.02,0.00042929,120]
[400105964,1767122851473,-150.02,0.00042929,120]
[400105965,1767122851502,-150.02,0.00042929,120]
[400105966,1767122851529,-150.02,0.00042929,120]
[400105967,1767122851557,-150.02,0.00042929,120]
[400105968,1767122851586,-150.02,0.00042929,120]
[400105969,1767122851614,-150.02,0.00042929,120]
[400105970,1767122851642,-150.02,0.00042929,120]
[400105971,1767122851671,-150.02,0.00042929,120]
[400105972,1767122851700,-150.02,0.00042929,120]
[400105973,1767122851728,-150.02,0.00042929,120]
[400105974,1767122851755,-150.02,0.00042929,120]
[400105975,1767122851783,-150.02,0.00042929,120]
[400105976,1767122851810,-1000.0,0.00042929,30]
[400105977,1767122851838,-150.02,0.00042929,120]
[400105978,1767122851868,-150.02,0.00042929,120]
[400105979,1767122851896,-150.02,0.00042929,120]
[400105980,1767122851926,-150.02,0.00042929,120]
[400105981,1767122851955,-150.02,0.00042929,120]
[400105982,1767122851982,-150.02,0.00042929,120]
[400105983,1767122852009,-150.02,0.00042929,120]
[400105984,1767122852035,-150.02,0.00042929,120]
[400105985,1767122852062,-150.02,0.00042929,120]
[400105986,1767122852089,-150.02,0.00042929,120]
[400105987,1767122852116,-150.02,0.00042929,120]
[400105988,1767122852143,-150.02,0.00042929,120]
[400105989,1767122852171,-150.02,0.00042929,120]
[400105990,1767122852198,-150.02,0.00042929,120]
[400105991,1767122852225,-150.02,0.00042929,120]
[400105992,1767122852252,-293.02,0.00042929,120]
[400105993,1767122852280,-150.01,0.00042929,120]
[400105994,1767122852306,-150.02,0.00042929,120]
[400105995,1767122852333,-150.02,0.00042929,120]
[400105996,1767122852359,-150.02,0.00042929,120]
[400105997,1767122852386,-150.02,0.00042929,120]
[400105998,1767122852412,-150.02,0.00042929,120]
[400105999,1767122852442,-150.02,0.00042929,120]
[400106000,1767122852470,-150.02,0.00042929,120]
[400106001,1767122852500,-150.02,0.00042929,120]
[400106002,1767122852527,-150.02,0.00042929,120]
[400106003,1767122852559,-150.02,0.00042929,120]
[400106004,1767122852586,-150.02,0.00042929,120]
[400106005,1767122852614,-150.02,0.00042929,120]
[400106006,1767122852642,-150.02,0.00042929,120]
[400106007,1767122852670,-150.02,0.00042929,120]
[400106008,1767122852696,-150.02,0.00042929,120]
[400106009,1767122852724,-150.02,0.00042929,120]
[400106010,1767122852751,-150.02,0.00042929,120]
[400106011,1767122852777,-150.02,0.00042929,120]
[400106012,1767122852949,-150.02,0.00042929,120]
[400106013,1767122852976,-150.02,0.00042929,120]
[400106014,1767122853003,-150.02,0.00042929,120]
[400106015,1767122853029,-150.02,0.00042929,120]
[400106016,1767122853055,-150.02,0.00042929,120]
[400106017,1767122853080,-150.02,0.00042929,120]
[400106018,1767122853106,-150.02,0.00042929,120]
[400106019,1767122853132,-150.02,0.00042929,120]
[400106020,1767122853158,-150.02,0.00042929,120]
[400106021,1767122853183,-150.02,0.00042929,120]
[400106022,1767122853210,-150.02,0.00042929,120]
[400106023,1767122853236,-150.02,0.00042929,120]
[400106024,1767122853262,-150.02,0.00042929,120]
[400106025,1767122853287,-150.02,0.00042929,120]
[400106026,1767122853314,-150.02,0.00042929,120]
[400106027,1767122853340,-150.02,0.00042929,120]
[400106028,1767122853367,-296.02,0.00042929,120]
[400106029,1767122853393,-616.21818315,0.00042929,90]
[400106030,1767122853420,-477.1319368,0.00042929,120]
[400106031,1767122853447,-999.999996,0.00042929,120]
[400106032,1767122853474,-1565.90823934,0.00042929,120]
[400106033,1767122853501,-424.28845401,0.00042929,91]
[400106034,1767122853533,-773.91196811,0.00042929,60]
[400106035,1767122853561,-248.46066898,0.00042929,120]
[400106036,1767122853588,-250.91431607,0.00042929,30]
[400106037,1767122853615,-1027.38955458,0.00042929,120]
[400106038,1767122853646,-761.08997248,0.00042929,120]
[400106039,1767122853677,-1571.33590384,0.00042929,120]
[400106040,1767122853705,-317.06768789,0.00042929,120]
[400106041,1767122853732,-2081.68167226,0.00042929,120]
[400106042,1767122853759,-876.89355371,0.00042929,30]
[400106043,1767122853786,-252.3649357,0.00042929,30]
[400106044,1767122853812,-655.28645952,0.00042929,120]
[400106045,1767122853840,-2153.2133753,0.00042929,30]
[400106046,1767122853870,-610.78844786,0.00042929,120]
[400106047,1767122853897,-1858.2103607,0.00042929,30]
[400106048,1767122853923,-2552.36194767,0.00042929,30]
[400106049,1767122853951,-204.67331858,0.00042929,120]
[400106050,1767122853983,-618.56403674,0.00042929,120]
[400106051,1767122854015,-753.24227911,0.00042929,120]
[400106052,1767122854049,-920.04871914,0.00042929,120]
[400106053,1767122854077,-442.11026606,0.00042929,120]
[400106054,1767122854108,-433.77353311,0.00042929,30]
[400106055,1767122854142,-488.56202936,0.00042929,90]
[400106056,1767122854173,-1321.52999557,0.00042929,120]
[400106057,1767122854207,-2616.39852685,0.00042929,120]
[400106058,1767122854239,-200.95565251,0.00042929,120]
[400106059,1767122854272,-674.80654042,0.00042929,120]
[400106060,1767122854304,-1121.60677423,0.00042929,120]
[400106061,1767122854335,-201.30040481,0.00042929,60]
[400106062,1767122854366,-604.55038997,0.00042929,120]
[400106063,1767122854400,-204.80587731,0.00042929,120]
[400106064,1767122854432,-287.59715636,0.00042929,30]
[400106065,1767122854466,-220.65153006,0.00042929,30]
[400106066,1767122854496,-257.89101486,0.00042929,60]
[400106067,1767122854525,-192.29964633,0.00042929,120]
[400106068,1767122854555,-1254.12812869,0.00042929,120]
[400106069,1767122854585,-753.18960792,0.00042929,30]
[400106070,1767122854615,-1534.40882703,0.00042929,120]
[400106071,1767122854644,-498.59214405,0.00042929,120]
[400106072,1767122854673,-763.73002429,0.00042929,120]
[400106073,1767122854706,-307.59919745,0.00042929,30]
[400106074,1767122854733,-493.77566,0.00042929,75]
[400106075,1767122854761,-440.22820693,0.00042929,120]
[400106076,1767122854793,-267.85874958,0.00042929,30]
[400106077,1767122854824,-1997.19674519,0.00042929,120]
[400106078,1767122854853,-297.61272024,0.00042929,120]
[400106079,1767122854881,-342.01052595,0.00042929,30]
[400106080,1767122854909,-650.05078807,0.00042929,120]
[400106081,1767122854936,-651.39190412,0.00042929,120]
[400106082,1767122854968,-1017.93701157,0.00042929,120]
[400106083,1767122854995,-1420.31324438,0.00042929,120]
[400106084,1767122855022,-3275.10964661,0.00042929,30]
[400106085,1767122855049,-351.11803378,0.00042929,120]
[400106086,1767122855074,-430.62368537,0.00042929,120]
[400106087,1767122855100,-283.69163167,0.00042929,120]
[400106088,1767122855128,-907.61339589,0.00042929,120]
[400106089,1767122855154,-582.43694891,0.00042929,120]
[400106090,1767122855179,-189.46655127,0.00042929,30]
[400106091,1767122855209,-269.7776579,0.00042929,120]
[400106092,1767122855235,-312.92040947,0.00042929,120]
[400106093,1767122855261,-1087.11925749,0.00042929,120]
[400106094,1767122855288,-1753.18053697,0.00042929,120]
[400106095,1767122855315,-264.23012462,0.00042929,120]
[400106096,1767122855342,-1092.02702625,0.00042929,120]
[400106097,1767122855368,-326.48883003,0.00042929,30]
[400106098,1767122855395,-413.38007802,0.00042929,120]
[400106099,1767122855421,-738.38358598,0.00042929,120]
[400106100,1767122855448,-507.48945207,0.00042929,120]
[400106101,1767122855474,-575.17798187,0.00042929,30]
[400106102,1767122855501,-628.42717374,0.00042929,120]
[400106103,1767122855529,-1062.45735022,0.00042929,120]
[400106104,1767122855562,-1083.82635593,0.00042929,120]
[400106105,1767122855591,-598.77843418,0.00042929,120]
[400106106,1767122855618,-266.90555827,0.00042929,120]
[400106107,1767122855823,-2139.57401144,0.00042929,120]
[400106108,1767122855850,-1335.88609198,0.00042929,120]
[400106109,1767122855878,-267.52551685,0.00042929,33]
[400106110,1767122855904,-287.11985191,0.00042929,120]
[400106111,1767122855931,-301.2212131,0.00042929,30]
[400106112,1767122855959,-398.32337958,0.00042929,30]
[400106113,1767122855985,-204.85836457,0.00042929,120]
[400106114,1767122856012,-358.97476924,0.00042929,120]
[400106115,1767122856040,-3628.6460756,0.00042929,120]
[400106116,1767122856068,-3880.38090876,0.00042929,30]
[400106117,1767122856094,-298.80731083,0.00042929,30]
[400106118,1767122856121,-283.16952953,0.00042929,30]
[400106119,1767122856148,-183.6228274,0.00042929,30]
[400106120,1767122856175,-174.69604109,0.00042929,30]
[400106121,1767122856203,-216.09370683,0.00042929,31]
[400106122,1767122856229,-1827.57745575,0.00042929,120]
[400106123,1767122856256,-1279.0434416,0.00042929,120]
[400106124,1767122856282,-1323.50005417,0.00042929,30]
[400106125,1767122856309,-273.14314462,0.00042929,30]
[400106126,1767122856336,-3185.66996654,0.00042929,120]
[400106127,1767122856363,-3120.10374327,0.00042929,30]
[400106128,1767122856390,-260.73540958,0.00042929,30]
[400106129,1767122856418,-342.19720797,0.00042929,30]
[400106130,1767122856446,-670.51214326,0.00042929,90]
[400106131,1767122856475,-1537.0542779,0.00042929,120]